[Event "Titled Tuesday Blitz March 29 Early 2022"]
[White "Avalos Parra, Joao"]
[Black "Di Nicolantonio, Lucas"]
[WhiteFideId "3402541"]
[BlackFideId "680460"]
[WhiteElo "2173"]
[BlackElo "2381"]
[Result "1-0"]
[Round "05"]
[TimeControl "180+1"]
[Date "2022.03.30"]
[WhiteClock "0:00:10"]
[BlackClock "0:00:10"]

1. d4 {[%clk 0:03:00]}  g6 {[%clk 0:02:57]} 2. Nc3 {[%clk 0:02:59]}  Bg7 {[%clk 0:02:51]} 3. e4 {[%clk 0:02:59]}  d6 {[%clk 0:02:51]} 4. f4 {[%clk 0:02:58]}  a6 {[%clk 0:02:52]} 5. Nf3 {[%clk 0:02:57]}  b5 {[%clk 0:02:52]} 6. Bd3 {[%clk 0:02:48]}  Nd7 {[%clk 0:02:52]} 7. e5 {[%clk 0:02:45]}  c5 {[%clk 0:02:52]} 8. Be3 {[%clk 0:02:41]}  Bb7 {[%clk 0:02:45]} 9. Be4 {[%clk 0:02:39]}  Bxe4 {[%clk 0:02:39]} 10. Nxe4 {[%clk 0:02:40]}  Nh6 {[%clk 0:02:39]} 11. dxc5 {[%clk 0:02:32]}  Ng4 {[%clk 0:02:35]} 12. Qd3 {[%clk 0:02:19]}  O-O {[%clk 0:02:21]} 13. cxd6 {[%clk 0:02:14]}  exd6 {[%clk 0:02:16]} 14. Nxd6 {[%clk 0:02:05]}  Qc7 {[%clk 0:01:50]} 15. O-O-O {[%clk 0:01:59]}  Nc5 {[%clk 0:01:40]} 16. Qe2 {[%clk 0:01:49]}  Rfd8 {[%clk 0:01:24]} 17. Bxc5 {[%clk 0:01:22]}  Qxc5 {[%clk 0:01:22]} 18. Nb7 {[%clk 0:01:23]}  Rxd1+ {[%clk 0:01:21]} 19. Rxd1 {[%clk 0:01:23]}  Qb4 {[%clk 0:01:15]} 20. Rd4 {[%clk 0:01:16]}  Qe7 {[%clk 0:01:10]} 21. Nd6 {[%clk 0:01:11]}  h5 {[%clk 0:01:05]} 22. h3 {[%clk 0:01:11]}  Nh6 {[%clk 0:01:05]} 23. Ng5 {[%clk 0:01:09]}  Rd8 {[%clk 0:01:03]} 24. g4 {[%clk 0:00:53]}  hxg4 {[%clk 0:01:01]} 25. hxg4 {[%clk 0:00:54]}  Qa7 {[%clk 0:00:51]} 26. Qd1 {[%clk 0:00:51]}  Rd7 {[%clk 0:00:36]} 27. Kb1 {[%clk 0:00:48]}  Nxg4 {[%clk 0:00:34]} 28. Ngxf7 {[%clk 0:00:43]}  Ne3 {[%clk 0:00:28]} 29. Qd3 {[%clk 0:00:35]}  Nxc2 {[%clk 0:00:18]} 30. Kxc2 {[%clk 0:00:34]}  Qc5+ {[%clk 0:00:18]} 31. Kb1 {[%clk 0:00:33]}  Rc7 {[%clk 0:00:18]} 32. Qd2 {[%clk 0:00:28]}  Qc6 {[%clk 0:00:17]} 33. a3 {[%clk 0:00:23]}  Qh1+ {[%clk 0:00:17]} 34. Ka2 {[%clk 0:00:23]}  Rc1 {[%clk 0:00:17]} 35. Ng5 {[%clk 0:00:15]}  Ra1+ {[%clk 0:00:17]} 36. Kb3 {[%clk 0:00:15]}  a5 {[%clk 0:00:13]} 37. Nxb5 {[%clk 0:00:14]}  a4+ {[%clk 0:00:12]} 38. Rxa4 {[%clk 0:00:13]}  Qb7 {[%clk 0:00:11]} 39. Qd8+ {[%clk 0:00:11]}  Bf8 {[%clk 0:00:11]} 40. Rb4 {[%clk 0:00:09]}  Rd1 {[%clk 0:00:10]} 41. Qxd1 {[%clk 0:00:09]}  Bxb4 {[%clk 0:00:10]} 42. axb4 {[%clk 0:00:09]}  Qxb5 {[%clk 0:00:10]} 43. Qd8+ {[%clk 0:00:09]}  Kg7 {[%clk 0:00:10]} 44. Qe7+ {[%clk 0:00:10]}  Kh8 {[%clk 0:00:10]} 45. Qh7# {[%clk 0:00:10]} 1-0


[Site "https://www.chess.com"]

[Event "Titled Tuesday Blitz March 29 Early 2022"]
[White "Avila Pavas, Santiago"]
[Black "Riehle, Marco"]
[WhiteFideId "4437128"]
[BlackFideId "12904392"]
[WhiteElo "2701"]
[BlackElo "2540"]
[Result "1-0"]
[Round "05"]
[TimeControl "180+1"]
[Date "2022.03.30"]
[WhiteClock "0:00:09"]
[BlackClock "0:00:21"]

1. d4 {[%clk 0:02:55]}  d5 {[%clk 0:02:59]} 2. Bf4 {[%clk 0:02:50]}  h5 {[%clk 0:02:59]} 3. e3 {[%clk 0:02:50]}  e5 {[%clk 0:02:59]} 4. Bxe5 {[%clk 0:02:32]}  f6 {[%clk 0:02:58]} 5. Bd3 {[%clk 0:01:57]}  fxe5 {[%clk 0:02:58]} 6. Bg6+ {[%clk 0:01:56]}  Kd7 {[%clk 0:02:58]} 7. dxe5 {[%clk 0:01:56]}  c6 {[%clk 0:02:58]} 8. Nf3 {[%clk 0:01:51]}  Kc7 {[%clk 0:02:54]} 9. Nc3 {[%clk 0:01:47]}  Ne7 {[%clk 0:02:39]} 10. Bd3 {[%clk 0:01:46]}  Be6 {[%clk 0:02:36]} 11. Nd4 {[%clk 0:01:45]}  Bf7 {[%clk 0:02:28]} 12. Qf3 {[%clk 0:01:43]}  Qe8 {[%clk 0:02:27]} 13. e6 {[%clk 0:01:33]}  Bg6 {[%clk 0:02:21]} 14. O-O-O {[%clk 0:01:11]}  Bxd3 {[%clk 0:02:20]} 15. cxd3 {[%clk 0:01:12]}  Na6 {[%clk 0:02:13]} 16. Qf4+ {[%clk 0:01:08]}  Kc8 {[%clk 0:02:10]} 17. Kb1 {[%clk 0:01:08]}  Qd8 {[%clk 0:01:59]} 18. Rc1 {[%clk 0:01:00]}  Qc7 {[%clk 0:01:57]} 19. Qg5 {[%clk 0:00:51]}  Nc5 {[%clk 0:01:53]} 20. Ncb5 {[%clk 0:00:49]}  cxb5 {[%clk 0:01:53]} 21. Rxc5 {[%clk 0:00:49]}  Qxc5 {[%clk 0:01:53]} 22. Rc1 {[%clk 0:00:49]}  Qxc1+ {[%clk 0:01:53]} 23. Kxc1 {[%clk 0:00:50]}  a6 {[%clk 0:01:50]} 24. Qe5 {[%clk 0:00:47]}  Rg8 {[%clk 0:01:41]} 25. Qd6 {[%clk 0:00:41]}  g6 {[%clk 0:01:31]} 26. Nb3 {[%clk 0:00:28]}  Nc6 {[%clk 0:01:27]} 27. Qd7+ {[%clk 0:00:25]}  Kb8 {[%clk 0:01:27]} 28. Qf7 {[%clk 0:00:24]}  Rh8 {[%clk 0:01:24]} 29. Qf6 {[%clk 0:00:22]}  Rg8 {[%clk 0:01:18]} 30. Qf7 {[%clk 0:00:22]}  Rh8 {[%clk 0:01:18]} 31. Qf6 {[%clk 0:00:18]}  Rh7 {[%clk 0:01:19]} 32. Qxf8+ {[%clk 0:00:17]}  Ka7 {[%clk 0:01:20]} 33. Qc5+ {[%clk 0:00:18]}  Kb8 {[%clk 0:01:19]} 34. Qd6+ {[%clk 0:00:18]}  Ka7 {[%clk 0:01:19]} 35. Nc5 {[%clk 0:00:16]}  Rc8 {[%clk 0:01:16]} 36. Kd2 {[%clk 0:00:16]}  h4 {[%clk 0:01:07]} 37. Nd7 {[%clk 0:00:16]}  Rd8 {[%clk 0:01:03]} 38. Qc7 {[%clk 0:00:14]}  g5 {[%clk 0:00:57]} 39. h3 {[%clk 0:00:14]}  Re7 {[%clk 0:00:57]} 40. Qd6 {[%clk 0:00:14]}  Rg7 {[%clk 0:00:49]} 41. Qxd5 {[%clk 0:00:13]}  Re7 {[%clk 0:00:48]} 42. Qd6 {[%clk 0:00:12]}  Rg7 {[%clk 0:00:46]} 43. Qc5+ {[%clk 0:00:10]}  Ka8 {[%clk 0:00:45]} 44. Qd5 {[%clk 0:00:11]}  Re7 {[%clk 0:00:43]} 45. Qd6 {[%clk 0:00:08]}  Rde8 {[%clk 0:00:42]} 46. Nc5 {[%clk 0:00:07]}  Rd8 {[%clk 0:00:41]} 47. Nd7 {[%clk 0:00:05]}  Rde8 {[%clk 0:00:42]} 48. Qc7 {[%clk 0:00:04]}  Ka7 {[%clk 0:00:37]} 49. Qb6+ {[%clk 0:00:03]}  Ka8 {[%clk 0:00:38]} 50. Nc5 {[%clk 0:00:04]}  Nb8 {[%clk 0:00:33]} 51. d4 {[%clk 0:00:04]}  Rc8 {[%clk 0:00:33]} 52. Qd6 {[%clk 0:00:04]}  Ree8 {[%clk 0:00:31]} 53. d5 {[%clk 0:00:03]}  Red8 {[%clk 0:00:31]} 54. Qe7 {[%clk 0:00:03]}  Re8 {[%clk 0:00:31]} 55. Qd6 {[%clk 0:00:03]}  Red8 {[%clk 0:00:31]} 56. Nd7 {[%clk 0:00:04]}  Ka7 {[%clk 0:00:25]} 57. Qb6+ {[%clk 0:00:03]}  Ka8 {[%clk 0:00:25]} 58. Qd6 {[%clk 0:00:04]}  Ka7 {[%clk 0:00:25]} 59. b4 {[%clk 0:00:04]}  Nxd7 {[%clk 0:00:21]} 60. exd7 {[%clk 0:00:05]}  Rc4 {[%clk 0:00:21]} 61. Qe7 {[%clk 0:00:05]}  Rxd7 {[%clk 0:00:20]} 62. Qxd7 {[%clk 0:00:06]}  g4 {[%clk 0:00:21]} 63. hxg4 {[%clk 0:00:06]}  h3 {[%clk 0:00:21]} 64. gxh3 {[%clk 0:00:07]}  a5 {[%clk 0:00:21]} 65. bxa5 {[%clk 0:00:07]}  b4 {[%clk 0:00:22]} 66. Qb5 {[%clk 0:00:07]}  Rc8 {[%clk 0:00:22]} 67. Qxb4 {[%clk 0:00:07]}  b5 {[%clk 0:00:20]} 68. Qxb5 {[%clk 0:00:08]}  Rb8 {[%clk 0:00:20]} 69. Qxb8+ {[%clk 0:00:08]}  Kxb8 {[%clk 0:00:21]} 70. h4 {[%clk 0:00:09]} 1-0


[Site "https://www.chess.com"]

[Event "Titled Tuesday Blitz March 29 Early 2022"]
[White "Bashirli, Saadat"]
[Black "Lagunov, Evgenij"]
[WhiteFideId "13429990"]
[BlackFideId "4125363"]
[WhiteElo "1173"]
[BlackElo "2200"]
[Result "0-1"]
[Round "05"]
[TimeControl "180+1"]
[Date "2022.03.30"]
[WhiteClock "0:00:25"]
[BlackClock "0:00:41"]

1. d4 {[%clk 0:02:45]}  Nf6 {[%clk 0:02:57]} 2. Bg5 {[%clk 0:02:40]}  e6 {[%clk 0:02:55]} 3. e4 {[%clk 0:02:38]}  h6 {[%clk 0:02:53]} 4. Bxf6 {[%clk 0:02:36]}  Qxf6 {[%clk 0:02:52]} 5. c3 {[%clk 0:02:35]}  c5 {[%clk 0:02:45]} 6. Nf3 {[%clk 0:02:31]}  Nc6 {[%clk 0:02:42]} 7. Bb5 {[%clk 0:02:29]}  cxd4 {[%clk 0:02:40]} 8. cxd4 {[%clk 0:02:27]}  Be7 {[%clk 0:02:23]} 9. O-O {[%clk 0:02:22]}  O-O {[%clk 0:02:22]} 10. Nc3 {[%clk 0:02:16]}  d6 {[%clk 0:02:21]} 11. d5 {[%clk 0:02:15]}  Ne5 {[%clk 0:02:20]} 12. Nxe5 {[%clk 0:02:09]}  Qxe5 {[%clk 0:02:19]} 13. Bd3 {[%clk 0:02:02]}  Bd7 {[%clk 0:02:13]} 14. Qf3 {[%clk 0:01:57]}  a6 {[%clk 0:02:04]} 15. Rac1 {[%clk 0:01:48]}  Bg5 {[%clk 0:02:02]} 16. Rcd1 {[%clk 0:01:42]}  Rac8 {[%clk 0:01:58]} 17. Qe2 {[%clk 0:01:16]}  b5 {[%clk 0:01:48]} 18. a3 {[%clk 0:01:16]}  Rfe8 {[%clk 0:01:45]} 19. dxe6 {[%clk 0:01:15]}  fxe6 {[%clk 0:01:42]} 20. g3 {[%clk 0:00:56]}  Bf6 {[%clk 0:01:27]} 21. f4 {[%clk 0:00:55]}  Qc5+ {[%clk 0:01:22]} 22. Kg2 {[%clk 0:00:54]}  Bxc3 {[%clk 0:01:19]} 23. bxc3 {[%clk 0:00:51]}  Qxc3 {[%clk 0:01:18]} 24. Qa2 {[%clk 0:00:43]}  Kh8 {[%clk 0:00:59]} 25. Rf2 {[%clk 0:00:35]}  Qc5 {[%clk 0:00:50]} 26. Rc2 {[%clk 0:00:33]}  Qh5 {[%clk 0:00:46]} 27. Rxc8 {[%clk 0:00:31]}  Rxc8 {[%clk 0:00:45]} 28. Qb2 {[%clk 0:00:29]}  Qxd1 {[%clk 0:00:41]} 29. e5 {[%clk 0:00:25]} 0-1


[Site "https://www.chess.com"]

[Event "Titled Tuesday Blitz March 29 Early 2022"]
[White "Biletskiy, Danylo"]
[Black "Mihailidis, Anastasios"]
[WhiteFideId "14155419"]
[BlackFideId "4205588"]
[WhiteElo "2087"]
[BlackElo "2312"]
[Result "0-1"]
[Round "05"]
[TimeControl "180+1"]
[Date "2022.03.30"]
[WhiteClock "0:01:47"]
[BlackClock "0:02:16"]

1. e4 {[%clk 0:03:00]}  c5 {[%clk 0:02:59]} 2. Nf3 {[%clk 0:02:58]}  d6 {[%clk 0:02:59]} 3. Bb5+ {[%clk 0:02:57]}  Bd7 {[%clk 0:02:59]} 4. Qe2 {[%clk 0:02:47]}  a6 {[%clk 0:02:58]} 5. Bxd7+ {[%clk 0:02:39]}  Qxd7 {[%clk 0:02:59]} 6. O-O {[%clk 0:02:39]}  Nf6 {[%clk 0:02:58]} 7. d4 {[%clk 0:02:38]}  cxd4 {[%clk 0:02:58]} 8. Nxd4 {[%clk 0:02:39]}  Nc6 {[%clk 0:02:58]} 9. c3 {[%clk 0:02:35]}  g6 {[%clk 0:02:57]} 10. f3 {[%clk 0:02:34]}  Bg7 {[%clk 0:02:56]} 11. Be3 {[%clk 0:02:31]}  O-O {[%clk 0:02:55]} 12. Nd2 {[%clk 0:02:26]}  Rac8 {[%clk 0:02:54]} 13. Nc4 {[%clk 0:02:22]}  Qc7 {[%clk 0:02:48]} 14. b3 {[%clk 0:02:18]}  b5 {[%clk 0:02:46]} 15. Nd2 {[%clk 0:02:17]}  Rfd8 {[%clk 0:02:43]} 16. Rfd1 {[%clk 0:01:58]}  d5 {[%clk 0:02:34]} 17. exd5 {[%clk 0:01:57]}  Nxd5 {[%clk 0:02:34]} 18. Rac1 {[%clk 0:01:50]}  Nxe3 {[%clk 0:02:32]} 19. Qxe3 {[%clk 0:01:49]}  Nxd4 {[%clk 0:02:31]} 20. cxd4 {[%clk 0:01:49]}  Qxc1 {[%clk 0:02:16]} 21. Rxc1 {[%clk 0:01:47]}  Rxc1+ {[%clk 0:02:16]} 0-1


[Site "https://www.chess.com"]

[Event "Titled Tuesday Blitz March 29 Early 2022"]
[White "Csonka, Balazs"]
[Black "Chigaev, Maksim"]
[WhiteFideId "742910"]
[BlackFideId "4108116"]
[WhiteElo "2404"]
[BlackElo "2502"]
[Result "0-1"]
[Round "05"]
[TimeControl "180+1"]
[Date "2022.03.29"]
[WhiteClock "0:00:03"]
[BlackClock "0:00:25"]

1. d4 {[%clk 0:03:00]}  Nf6 {[%clk 0:03:00]} 2. c4 {[%clk 0:03:00]}  g6 {[%clk 0:03:00]} 3. Nc3 {[%clk 0:03:00]}  d5 {[%clk 0:03:01]} 4. cxd5 {[%clk 0:03:00]}  Nxd5 {[%clk 0:03:02]} 5. e4 {[%clk 0:03:01]}  Nxc3 {[%clk 0:03:02]} 6. bxc3 {[%clk 0:03:01]}  Bg7 {[%clk 0:03:03]} 7. Be3 {[%clk 0:03:02]}  c5 {[%clk 0:03:03]} 8. Rc1 {[%clk 0:03:02]}  O-O {[%clk 0:03:01]} 9. Nf3 {[%clk 0:03:01]}  Bg4 {[%clk 0:02:59]} 10. Be2 {[%clk 0:03:01]}  Qa5 {[%clk 0:02:51]} 11. O-O {[%clk 0:03:00]}  Qxa2 {[%clk 0:02:46]} 12. h3 {[%clk 0:02:39]}  Bc8 {[%clk 0:02:33]} 13. Qd3 {[%clk 0:01:36]}  Qa5 {[%clk 0:02:30]} 14. d5 {[%clk 0:01:13]}  Nd7 {[%clk 0:02:24]} 15. c4 {[%clk 0:01:03]}  Qc7 {[%clk 0:02:20]} 16. h4 {[%clk 0:01:03]}  a5 {[%clk 0:02:18]} 17. h5 {[%clk 0:01:02]}  a4 {[%clk 0:02:18]} 18. Bg5 {[%clk 0:00:53]}  Ne5 {[%clk 0:02:03]} 19. Nxe5 {[%clk 0:00:47]}  Bxe5 {[%clk 0:02:04]} 20. hxg6 {[%clk 0:00:38]}  fxg6 {[%clk 0:01:49]} 21. g3 {[%clk 0:00:36]}  a3 {[%clk 0:01:38]} 22. f4 {[%clk 0:00:36]}  Bd4+ {[%clk 0:01:38]} 23. Kh2 {[%clk 0:00:36]}  a2 {[%clk 0:01:39]} 24. Ra1 {[%clk 0:00:29]}  e5 {[%clk 0:01:28]} 25. Qd2 {[%clk 0:00:18]}  Qa5 {[%clk 0:01:26]} 26. Qc2 {[%clk 0:00:09]}  Qc3 {[%clk 0:01:18]} 27. Qxc3 {[%clk 0:00:07]}  Bxc3 {[%clk 0:01:17]} 28. Rfc1 {[%clk 0:00:07]}  Bd4 {[%clk 0:01:06]} 29. Rd1 {[%clk 0:00:06]}  Bxa1 {[%clk 0:00:54]} 30. Rxa1 {[%clk 0:00:06]}  b6 {[%clk 0:00:44]} 31. Kg2 {[%clk 0:00:04]}  Re8 {[%clk 0:00:38]} 32. Kf2 {[%clk 0:00:02]}  Ra4 {[%clk 0:00:36]} 33. Ke3 {[%clk 0:00:02]}  Ra3+ {[%clk 0:00:25]} 34. Kd2 {[%clk 0:00:01]}  exf4 {[%clk 0:00:25]} 35. gxf4 {[%clk 0:00:02]}  Rxe4 {[%clk 0:00:25]} 36. Bd3 {[%clk 0:00:03]}  Rd4 {[%clk 0:00:25]} 0-1


[Site "https://www.chess.com"]

[Event "Titled Tuesday Blitz March 29 Early 2022"]
[White "Czerw, Dawid"]
[Black "Tregubov, Pavel V."]
[WhiteFideId "1145746"]
[BlackFideId "4115341"]
[WhiteElo "2125"]
[BlackElo "2341"]
[Result "0-1"]
[Round "05"]
[TimeControl "180+1"]
[Date "2022.03.30"]
[WhiteClock "0:00:02"]
[BlackClock "0:00:15"]

1. e4 {[%clk 0:03:00]}  e6 {[%clk 0:02:57]} 2. d4 {[%clk 0:02:57]}  d5 {[%clk 0:02:51]} 3. Bd3 {[%clk 0:02:57]}  dxe4 {[%clk 0:02:48]} 4. Bxe4 {[%clk 0:02:58]}  Nf6 {[%clk 0:02:49]} 5. Bf3 {[%clk 0:02:58]}  Nbd7 {[%clk 0:02:47]} 6. Ne2 {[%clk 0:02:55]}  Bd6 {[%clk 0:02:45]} 7. Nbc3 {[%clk 0:02:49]}  e5 {[%clk 0:02:43]} 8. Be3 {[%clk 0:02:39]}  O-O {[%clk 0:02:41]} 9. Qd2 {[%clk 0:02:34]}  Re8 {[%clk 0:02:32]} 10. g3 {[%clk 0:02:14]}  exd4 {[%clk 0:02:29]} 11. Nxd4 {[%clk 0:02:09]}  Ne5 {[%clk 0:02:29]} 12. Be2 {[%clk 0:02:07]}  Bg4 {[%clk 0:02:18]} 13. O-O-O {[%clk 0:02:02]}  Bb4 {[%clk 0:02:06]} 14. Ndb5 {[%clk 0:01:15]}  c6 {[%clk 0:01:38]} 15. Qxd8 {[%clk 0:00:26]}  Rexd8 {[%clk 0:01:36]} 16. Nd4 {[%clk 0:00:26]}  Bxc3 {[%clk 0:01:31]} 17. bxc3 {[%clk 0:00:27]}  Nd5 {[%clk 0:01:24]} 18. Bd2 {[%clk 0:00:21]}  c5 {[%clk 0:01:10]} 19. f3 {[%clk 0:00:13]}  Bh5 {[%clk 0:00:53]} 20. g4 {[%clk 0:00:10]}  cxd4 {[%clk 0:00:40]} 21. gxh5 {[%clk 0:00:10]}  Nxc3 {[%clk 0:00:31]} 22. Bxc3 {[%clk 0:00:09]}  dxc3 {[%clk 0:00:31]} 23. f4 {[%clk 0:00:08]}  Nc6 {[%clk 0:00:27]} 24. Bf3 {[%clk 0:00:07]}  Nd4 {[%clk 0:00:24]} 25. Bxb7 {[%clk 0:00:05]}  Rab8 {[%clk 0:00:17]} 26. Ba6 {[%clk 0:00:05]}  Rb2 {[%clk 0:00:15]} 27. Bd3 {[%clk 0:00:02]}  Rdb8 {[%clk 0:00:15]} 0-1


[Site "https://www.chess.com"]

[Event "Titled Tuesday Blitz March 29 Early 2022"]
[White "Demchenko, Anton"]
[Black "Taboas Rodriguez, Daniel"]
[WhiteFideId "4160258"]
[BlackFideId "2208466"]
[WhiteElo "2539"]
[BlackElo "2429"]
[Result "1-0"]
[Round "05"]
[TimeControl "180+1"]
[Date "2022.03.29"]
[WhiteClock "0:00:53"]
[BlackClock "0:00:10"]

1. a3 {[%clk 0:03:00]}  d5 {[%clk 0:02:58]} 2. Nf3 {[%clk 0:03:01]}  Bg4 {[%clk 0:02:58]} 3. g3 {[%clk 0:03:01]}  Nd7 {[%clk 0:02:51]} 4. Bg2 {[%clk 0:03:00]}  e5 {[%clk 0:02:51]} 5. d3 {[%clk 0:03:01]}  Bd6 {[%clk 0:02:51]} 6. h3 {[%clk 0:02:58]}  Bh5 {[%clk 0:02:51]} 7. O-O {[%clk 0:02:55]}  c6 {[%clk 0:02:50]} 8. Nbd2 {[%clk 0:02:47]}  Ngf6 {[%clk 0:02:49]} 9. e4 {[%clk 0:02:46]}  O-O {[%clk 0:02:49]} 10. b3 {[%clk 0:02:46]}  Re8 {[%clk 0:02:48]} 11. Bb2 {[%clk 0:02:47]}  a5 {[%clk 0:02:45]} 12. Qe1 {[%clk 0:02:44]}  Qc7 {[%clk 0:02:34]} 13. Nh4 {[%clk 0:02:43]}  Bg6 {[%clk 0:02:32]} 14. Qe2 {[%clk 0:02:33]}  Nc5 {[%clk 0:02:26]} 15. Rfe1 {[%clk 0:02:23]}  b5 {[%clk 0:02:05]} 16. Nxg6 {[%clk 0:02:19]}  hxg6 {[%clk 0:02:04]} 17. exd5 {[%clk 0:02:16]}  cxd5 {[%clk 0:02:05]} 18. d4 {[%clk 0:02:15]}  exd4 {[%clk 0:01:56]} 19. Qxb5 {[%clk 0:02:15]}  d3 {[%clk 0:01:34]} 20. Rxe8+ {[%clk 0:02:07]}  Rxe8 {[%clk 0:01:34]} 21. Bxf6 {[%clk 0:02:07]}  Rb8 {[%clk 0:01:35]} 22. Bd8 {[%clk 0:01:43]}  Qxd8 {[%clk 0:01:22]} 23. Qc6 {[%clk 0:01:43]}  dxc2 {[%clk 0:01:18]} 24. Rc1 {[%clk 0:01:43]}  Nxb3 {[%clk 0:00:28]} 25. Nxb3 {[%clk 0:01:43]}  Rxb3 {[%clk 0:00:29]} 26. Rxc2 {[%clk 0:01:41]}  Bxa3 {[%clk 0:00:22]} 27. Bxd5 {[%clk 0:01:39]}  Rd3 {[%clk 0:00:17]} 28. Ba2 {[%clk 0:01:14]}  Rd1+ {[%clk 0:00:16]} 29. Kg2 {[%clk 0:01:14]}  Bb4 {[%clk 0:00:12]} 30. h4 {[%clk 0:00:57]}  Qd7 {[%clk 0:00:11]} 31. Qf3 {[%clk 0:00:54]}  Qf5 {[%clk 0:00:10]} 32. Qxd1 {[%clk 0:00:53]} 1-0


[Site "https://www.chess.com"]

[Event "Titled Tuesday Blitz March 29 Early 2022"]
[White "Dev, Shah"]
[Black "Vovk, Orest"]
[WhiteFideId "35019058"]
[BlackFideId "14113490"]
[WhiteElo "2075"]
[BlackElo "2203"]
[Result "1-0"]
[Round "05"]
[TimeControl "180+1"]
[Date "2022.03.30"]
[WhiteClock "0:00:05"]
[BlackClock "0:00:02"]

1. d4 {[%clk 0:03:00]}  e5 {[%clk 0:02:58]} 2. dxe5 {[%clk 0:03:00]}  Nc6 {[%clk 0:02:58]} 3. Nf3 {[%clk 0:02:59]}  Qe7 {[%clk 0:02:58]} 4. Nbd2 {[%clk 0:02:58]}  Nxe5 {[%clk 0:02:57]} 5. Nxe5 {[%clk 0:02:58]}  Qxe5 {[%clk 0:02:57]} 6. Nf3 {[%clk 0:02:59]}  Qd6 {[%clk 0:02:58]} 7. Bd2 {[%clk 0:02:58]}  Nf6 {[%clk 0:02:57]} 8. e3 {[%clk 0:02:56]}  Qb6 {[%clk 0:02:55]} 9. Rb1 {[%clk 0:02:47]}  Ne4 {[%clk 0:02:54]} 10. Bd3 {[%clk 0:02:47]}  Nxd2 {[%clk 0:02:53]} 11. Qxd2 {[%clk 0:02:48]}  Be7 {[%clk 0:02:48]} 12. O-O {[%clk 0:02:46]}  d6 {[%clk 0:02:48]} 13. c4 {[%clk 0:02:44]}  O-O {[%clk 0:02:47]} 14. b4 {[%clk 0:02:43]}  Bf6 {[%clk 0:02:45]} 15. Qc2 {[%clk 0:02:42]}  g6 {[%clk 0:02:43]} 16. c5 {[%clk 0:02:42]}  dxc5 {[%clk 0:02:41]} 17. bxc5 {[%clk 0:02:42]}  Qa5 {[%clk 0:02:39]} 18. Nd4 {[%clk 0:02:38]}  Bxd4 {[%clk 0:02:34]} 19. exd4 {[%clk 0:02:38]}  b6 {[%clk 0:02:33]} 20. Rb5 {[%clk 0:02:34]}  Qa3 {[%clk 0:02:32]} 21. c6 {[%clk 0:01:44]}  Ba6 {[%clk 0:02:11]} 22. Rb3 {[%clk 0:01:41]}  Bxd3 {[%clk 0:02:11]} 23. Rxd3 {[%clk 0:01:40]}  Qd6 {[%clk 0:02:10]} 24. d5 {[%clk 0:01:37]}  Rfe8 {[%clk 0:02:09]} 25. Rfd1 {[%clk 0:01:37]}  Re5 {[%clk 0:02:09]} 26. h3 {[%clk 0:01:34]}  Rae8 {[%clk 0:02:08]} 27. g3 {[%clk 0:01:27]}  h5 {[%clk 0:01:47]} 28. Kg2 {[%clk 0:01:25]}  h4 {[%clk 0:01:44]} 29. g4 {[%clk 0:01:21]}  Re2 {[%clk 0:01:43]} 30. R1d2 {[%clk 0:01:17]}  Re1 {[%clk 0:01:36]} 31. Rf3 {[%clk 0:01:03]}  R8e5 {[%clk 0:01:22]} 32. Qc4 {[%clk 0:00:49]}  g5 {[%clk 0:01:14]} 33. Qd4 {[%clk 0:00:30]}  Rc1 {[%clk 0:01:01]} 34. Rf5 {[%clk 0:00:29]}  Rxf5 {[%clk 0:00:47]} 35. gxf5 {[%clk 0:00:29]}  Re1 {[%clk 0:00:47]} 36. Qg4 {[%clk 0:00:17]}  f6 {[%clk 0:00:34]} 37. Qh5 {[%clk 0:00:16]}  Re7 {[%clk 0:00:35]} 38. Qg6+ {[%clk 0:00:15]}  Kh8 {[%clk 0:00:23]} 39. Qh6+ {[%clk 0:00:13]}  Rh7 {[%clk 0:00:18]} 40. Qg6 {[%clk 0:00:13]}  Qe5 {[%clk 0:00:13]} 41. Kf1 {[%clk 0:00:05]}  Rg7 {[%clk 0:00:10]} 42. Qh5+ {[%clk 0:00:05]}  Kg8 {[%clk 0:00:10]} 43. Re2 {[%clk 0:00:06]}  Qxe2+ {[%clk 0:00:01]} 44. Qxe2 {[%clk 0:00:05]}  Re7 {[%clk 0:00:02]} 45. Qxe7 {[%clk 0:00:05]} 1-0


[Site "https://www.chess.com"]

[Event "Titled Tuesday Blitz March 29 Early 2022"]
[White "Fajdetic, Hrvoje"]
[Black "Golubev, Mikhail"]
[WhiteFideId "14501945"]
[BlackFideId "14100983"]
[WhiteElo "2172"]
[BlackElo "2374"]
[Result "0-1"]
[Round "05"]
[TimeControl "180+1"]
[Date "2022.03.30"]
[WhiteClock "0:00:01"]
[BlackClock "0:00:31"]

1. d4 {[%clk 0:02:53]}  Nf6 {[%clk 0:02:59]} 2. Bf4 {[%clk 0:02:51]}  g6 {[%clk 0:02:58]} 3. Nc3 {[%clk 0:02:50]}  Bg7 {[%clk 0:02:54]} 4. e4 {[%clk 0:02:50]}  d6 {[%clk 0:02:52]} 5. Qd2 {[%clk 0:02:50]}  Nc6 {[%clk 0:02:46]} 6. O-O-O {[%clk 0:02:49]}  O-O {[%clk 0:02:42]} 7. Bh6 {[%clk 0:02:48]}  Bxh6 {[%clk 0:02:27]} 8. Qxh6 {[%clk 0:02:46]}  e5 {[%clk 0:02:25]} 9. dxe5 {[%clk 0:02:44]}  Ng4 {[%clk 0:02:11]} 10. Qd2 {[%clk 0:02:40]}  Ngxe5 {[%clk 0:02:05]} 11. f4 {[%clk 0:02:39]}  Ng4 {[%clk 0:01:59]} 12. h3 {[%clk 0:02:39]}  Nf6 {[%clk 0:01:58]} 13. Nf3 {[%clk 0:02:33]}  Re8 {[%clk 0:01:57]} 14. e5 {[%clk 0:02:31]}  dxe5 {[%clk 0:01:55]} 15. Qxd8 {[%clk 0:02:30]}  Rxd8 {[%clk 0:01:44]} 16. Rxd8+ {[%clk 0:02:29]}  Nxd8 {[%clk 0:01:45]} 17. Nxe5 {[%clk 0:02:28]}  Ne6 {[%clk 0:01:31]} 18. Bc4 {[%clk 0:02:01]}  Nxf4 {[%clk 0:01:22]} 19. Bxf7+ {[%clk 0:01:51]}  Kg7 {[%clk 0:01:21]} 20. g4 {[%clk 0:01:24]}  Be6 {[%clk 0:01:15]} 21. Bxe6 {[%clk 0:01:16]}  Nxe6 {[%clk 0:01:15]} 22. Re1 {[%clk 0:01:15]}  Re8 {[%clk 0:01:08]} 23. Nf3 {[%clk 0:00:44]}  Nf4 {[%clk 0:01:06]} 24. Rxe8 {[%clk 0:00:39]}  Nxe8 {[%clk 0:01:07]} 25. h4 {[%clk 0:00:34]}  h5 {[%clk 0:01:05]} 26. gxh5 {[%clk 0:00:33]}  gxh5 {[%clk 0:01:04]} 27. Kd2 {[%clk 0:00:31]}  Kg6 {[%clk 0:00:59]} 28. Ke3 {[%clk 0:00:30]}  Kf5 {[%clk 0:00:55]} 29. Ne4 {[%clk 0:00:14]}  Ng2+ {[%clk 0:00:48]} 30. Kd4 {[%clk 0:00:12]}  Kg4 {[%clk 0:00:44]} 31. Neg5 {[%clk 0:00:09]}  Nxh4 {[%clk 0:00:42]} 32. Nxh4 {[%clk 0:00:09]}  Kxg5 {[%clk 0:00:38]} 33. Nf3+ {[%clk 0:00:06]}  Kf4 {[%clk 0:00:36]} 34. Nh2 {[%clk 0:00:03]}  h4 {[%clk 0:00:33]} 35. Kd3 {[%clk 0:00:01]}  h3 {[%clk 0:00:31]} 36. Ke2 {[%clk 0:00:01]}  Kg3 {[%clk 0:00:32]} 37. Nf1+ {[%clk 0:00:01]}  Kg2 {[%clk 0:00:31]} 38. Ne3+ {[%clk 0:00:01]}  Kg1 {[%clk 0:00:31]} 0-1


[Site "https://www.chess.com"]